bitfinex-derivatives/quotes_BNBF0:USTF0_20250425
["timestamp","ask_amount","ask_price","bid_price","bid_amount"]
[1745600447161,1.25797529,607.24,605.22,0.30306683]
[1745600447358,1.25797529,607.24,605.23,0.30306683]
[1745600447561,1.25797529,607.24,605.22,0.30306683]
[1745600447758,1.25797529,607.24,605.21,1.04405207]
[1745600447959,1.25797529,607.24,605.22,0.30305235]
[1745600448765,0.28712397,607.23,605.22,1.34710442]
[1745600449063,0.28712397,607.23,605.23,0.30305235]
[1745600450567,0.28712397,607.23,605.22,1.04405207]
[1745600450761,0.28712397,607.23,605.23,0.30305363]
[1745600450963,0.28712397,607.23,605.22,1.04405207]
[1745600451161,0.28712397,607.23,605.23,0.30305418]
[1745600451562,1.25797529,607.42,605.23,0.30305418]
[1745600451767,0.28710147,607.22,605.23,0.30305418]
[1745600452167,1.25797529,607.42,605.23,0.30305418]
[1745600452568,1.25797529,607.42,605.22,1.04405207]
[1745600452771,1.25797529,607.42,605.23,0.30305166]
[1745600453771,0.28710147,607.41,605.23,0.30305166]
[1745600454267,1.25797529,607.35,605.23,0.30305166]
[1745600454472,1.25797529,607.35,605.22,0.30305166]
[1745600454671,1.25797529,607.35,605.23,0.30305166]
[1745600456773,0.28710976,607.34,605.23,0.30305166]
[1745600457469,1.25797529,607.35,605.23,0.30305166]
[1745600457673,1.25797529,607.4,605.17,0.30305166]
[1745600457870,1.25797529,607.4,605.18,0.30305166]
[1745600458070,1.25797529,607.4,605.16,0.30305166]
[1745600458273,1.25797529,607.4,605.17,0.30305166]
[1745600458472,1.25797529,607.4,605.18,0.30305166]
[1745600458668,1.25797529,607.4,605.19,0.30305166]
[1745600458874,0.28711213,607.39,605.19,0.30305166]
[1745600460377,0.28711213,607.39,605.18,0.28711213]
[1745600460378,1.54508742,607.39,605.18,0.28711213]
[1745600460578,1.54508742,607.39,605.19,0.30306335]
[1745600463181,1.25797529,607.38,605.19,1.34711542]
[1745600463380,1.25797529,607.38,605.2,0.30306335]
[1745600463880,0.28710976,607.37,605.2,0.30306335]
[1745600465882,1.25797529,607.33,605.2,1.34711542]
[1745600466076,1.25797529,607.33,605.21,0.30306335]
[1745600466880,0.2871145,607.32,605.21,0.30306335]
[1745600467581,0.2871145,607.32,605.2,1.04405207]
[1745600467782,1.25797529,607.08,605.42,1.04405207]
[1745600468077,1.25797529,607.08,605.43,0.30305588]
[1745600469183,1.25797529,607.08,605.42,1.04405207]
[1745600469378,1.25797529,607.08,605.43,0.30304905]
[1745600470783,1.25797529,607.11,605.44,1.04405207]
[1745600470976,1.25797529,607.11,605.45,0.30304905]
[1745600471683,1.25797529,607.11,605.44,1.04405207]
[1745600471882,1.25797529,607.11,605.45,0.30305128]
[1745600472281,1.25797529,607.11,605.44,1.04405207]
[1745600473183,1.25797529,607.11,605.37,1.04405207]
[1745600473386,0.28711213,607.14,605.38,0.30307057]
[1745600473684,0.28711213,607.14,605.37,1.04405207]
[1745600475384,1.25797529,607.25,605.37,1.04405207]
[1745600475885,0.28712279,607.24,605.37,1.04405207]
[1745600476885,0.28712279,607.24,605.32,0.28712279]
[1745600476886,1.25797529,607.23,605.32,0.28712279]
[1745600477787,1.25797529,607.23,605.33,0.30308364]
[1745600478583,1.25797529,607.23,605.32,0.30308364]
[1745600478787,0.28712871,607.22,605.33,0.30308364]
[1745600480089,0.28712871,607.22,605.32,0.28712871]
[1745600480294,0.28712871,607.22,605.33,0.30306262]
[1745600481393,1.25797529,607.23,605.33,0.30306262]
[1745600481592,1.25797529,607.23,605.32,0.30306262]
[1745600481788,0.28712871,607.21,605.33,0.30306262]
[1745600484494,1.25797529,607.31,605.33,0.30306262]
[1745600484690,1.25797529,607.31,605.32,0.59017712]
[1745600484889,0.2871145,607.2,605.32,0.2871145]
[1745600485092,2.12377208,607.69,605.33,1.34710418]
[1745600485093,1.25797529,607.32,605.33,1.34710418]
[1745600485394,1.25797529,607.32,605.34,0.30305211]
[1745600485695,1.25797529,607.32,605.33,1.04405207]
[1745600485895,0.28711213,607.31,605.34,0.30305211]
[1745600486494,0.28711213,607.31,605.33,1.04405207]
[1745600486692,0.28711213,607.31,605.34,0.30305441]
[1745600487497,1.25797529,607.45,605.34,0.30305441]
[1745600487695,0.28711213,607.3,605.35,0.30305441]
[1745600487996,1.25797529,607.45,605.36,0.30305441]
[1745600488189,1.25797529,607.45,605.34,0.30305441]
[1745600489096,1.25797529,607.45,605.33,0.28711213]
[1745600489395,1.25797529,607.45,605.34,0.30305265]
[1745600489595,0.28708726,607.44,605.34,0.30305265]
[1745600489795,0.28708726,607.44,605.35,0.30304452]
[1745600489996,0.28708726,607.44,605.34,0.30304452]
[1745600490197,1.25797529,607.42,605.35,0.30304452]
[1745600490495,1.25797529,607.42,605.36,0.30304452]
[1745600490695,1.25797529,607.42,605.32,0.30304452]
[1745600490895,1.25797529,607.42,605.31,2.65205207]
[1745600490896,0.28708844,607.41,605.34,0.28708844]
[1745600491090,0.28708844,607.41,605.35,0.30304452]
[1745600492897,1.25797529,607.38,605.34,0.28708844]
[1745600493092,1.25797529,607.38,605.35,0.30303156]
[1745600493693,1.25797529,607.38,605.36,0.30303156]
[1745600493894,0.28707779,607.37,605.35,0.30303156]
[1745600494094,0.28707779,607.37,605.36,0.30303156]
[1745600494295,0.28707779,607.37,605.35,0.30303156]
[1745600494496,0.28707779,607.37,605.34,0.28707779]
[1745600494497,0.28707779,607.37,605.37,0.30303156]
[1745600494692,0.28707779,607.37,605.38,0.30303156]
[1745600494897,0.28707779,607.37,605.39,0.30303156]
[1745600495197,0.28707779,607.37,605.4,0.30303156]
[1745600495399,1.25797529,607.3,605.35,0.30303156]
[1745600495698,1.25797529,607.3,605.36,0.30303156]
[1745600495992,1.25797529,607.3,605.35,0.30303156]
[1745600496697,1.25797529,607.3,605.32,0.30303156]
[1745600496898,0.28709081,607.29,605.34,0.28708726]
[1745600497097,0.28709081,607.29,605.35,0.30303156]
[1745600499194,0.28709081,607.29,605.34,0.28708726]
[1745600499398,0.28709081,607.29,605.35,0.30303747]
[1745600499598,1.25797529,607.47,605.35,0.30303747]
[1745600499800,1.25797529,607.47,605.32,0.30303747]
[1745600499993,0.2870766,607.28,605.34,0.2870766]
[1745600500193,1.25797529,607.47,605.35,0.30303747]
[1745600500601,1.25797529,607.47,605.34,0.2870766]
[1745600500902,1.25797529,607.47,605.35,0.30304053]
[1745600501103,0.28708016,607.46,605.35,0.30304053]
[1745600501300,1.25797529,607.38,605.35,0.30304053]
[1745600502104,1.25797529,607.38,605.36,1.368]
[1745600502305,1.25797529,607.38,605.37,1.80704053]
[1745600502505,1.25797529,607.38,605.38,0.30305746]
[1745600503607,1.25797529,607.35,605.38,0.30305746]
[1745600503906,1.25797529,607.35,605.37,1.504]
[1745600504107,1.25797529,607.35,605.38,0.30305678]
[1745600504310,1.25797529,607.35,605.37,1.504]
[1745600505810,0.28711095,607.34,605.37,1.504]
[1745600506411,1.54508624,607.34,605.37,1.504]
[1745600508113,0.28711095,607.34,605.37,1.504]
[1745600508607,1.25797529,607.4,605.37,1.504]
[1745600508911,0.28710502,607.33,605.37,1.504]
[1745600514418,1.25797529,607.44,605.37,1.504]
[1745600515624,1.25797529,607.44,605.38,0.30305727]
[1745600515924,0.28710029,607.43,605.38,0.30305727]
[1745600516325,0.28710029,607.43,605.37,1.504]
[1745600516521,0.28710029,607.43,605.38,0.30306105]
[1745600516727,1.25797529,607.42,605.38,0.30306105]
[1745600517626,1.25797529,607.42,605.37,1.504]
[1745600517820,1.25797529,607.42,605.37,1.79110266]
[1745600517821,0.28710266,607.41,605.37,1.79110266]
[1745600518719,0.28710266,607.41,605.38,0.30305734]
[1745600518919,1.25797529,607.25,605.38,0.30305734]
[1745600519320,1.25797529,607.25,605.39,1.626]
[1745600520727,0.28712042,607.24,605.39,1.626]
[1745600521027,0.28712042,607.24,605.4,0.30302051]
[1745600521227,1.25797529,607.19,605.4,1.35602051]
[1745600521423,1.25797529,607.19,605.41,0.30302051]
[1745600522229,1.25797529,607.19,605.4,1.053]
[1745600522427,1.25797529,607.19,605.41,0.30296127]
[1745600524128,1.25797529,607.19,605.41,1.82396127]
[1745600524329,1.25797529,607.19,605.42,0.30296127]
[1745600525429,0.28707187,607.29,605.42,0.30296127]
[1745600528628,0.28707187,607.29,605.43,0.30297228]
[1745600528923,0.28707187,607.29,605.41,1.521]
[1745600528924,0.28707187,607.29,605.42,0.30297228]
[1745600529126,0.28707187,607.29,605.43,0.30297228]
[1745600529324,0.28707187,607.29,605.42,0.30297228]
[1745600529523,1.25797529,607.52,605.42,0.30297228]
[1745600530028,0.28704582,607.28,605.41,1.521]
[1745600530230,1.25797529,607.52,605.42,0.30299681]
[1745600530831,0.28704582,607.51,605.42,0.30299681]
[1745600531731,0.28704582,607.51,605.41,1.521]
[1745600532430,1.25797529,607.75,605.41,1.521]
[1745600532730,0.2870399,607.5,605.41,1.521]
[1745600532930,0.2870399,607.5,605.41,2.695]
[1745600533131,1.25797529,607.75,605.41,2.695]
[1745600533629,1.25797529,607.55,605.41,2.695]
[1745600535933,0.28707068,607.54,605.41,2.695]
[1745600537233,0.28707068,607.54,605.42,0.3030473]
[1745600537733,0.28707068,607.54,605.41,2.695]
[1745600537932,0.28707068,607.54,605.42,0.3030473]
[1745600538634,1.25797529,607.55,605.41,2.695]
[1745600538934,0.28707068,607.53,605.41,2.98207068]
[1745600539436,1.25797529,607.46,605.41,2.98207068]
[1745600541435,1.25797529,607.46,605.41,2.695]
[1745600541935,2.12377208,608.14,605.41,2.695]
[1745600541936,0.28708134,607.45,605.41,2.98208134]
[1745600547439,1.25797529,607.49,605.41,2.695]
[1745600547633,1.25797529,607.42,605.41,2.695]
[1745600547837,1.25797529,607.42,605.41,2.98207779]
[1745600549539,1.25797529,607.42,605.42,0.30303474]
[1745600550440,1.25797529,607.43,605.42,0.30303474]
[1745600552945,1.25797529,607.43,605.42,1.47803474]
[1745600553143,1.25797529,607.43,605.43,0.30303474]
[1745600553746,0.28708371,607.42,605.43,0.30303474]
[1745600554245,1.25797529,607.39,605.43,0.30303474]
[1745600556845,0.28708844,607.38,605.43,0.30303474]
[1745600557446,1.25797529,607.35,605.42,1.46208844]
[1745600559541,1.25797529,607.35,605.42,1.175]
[1745600559743,0.28713819,607.34,605.42,1.175]
[1745600562049,0.28713819,607.34,605.42,2.813]
[1745600562445,1.25797529,607.97,605.42,2.813]
[1745600562748,0.28706239,607.33,605.42,2.813]
[1745600562941,1.25797529,607.97,605.42,2.813]
[1745600563350,1.25797529,607.77,605.42,2.813]
[1745600563749,0.28708608,607.76,605.42,2.813]
[1745600564144,0.28708608,607.76,605.42,4.211]
[1745600565451,1.25797529,607.65,605.42,4.211]
[1745600567551,1.25797529,607.65,605.42,5.348]
[1745600568552,1.25797529,607.7,605.42,5.348]
[1745600568852,0.28710029,607.64,605.42,5.348]
[1745600569151,1.25797529,607.7,605.42,5.348]
[1745600569853,0.28709437,607.69,605.42,5.348]
[1745600570952,1.25797529,607.25,605.42,5.348]
[1745600572753,0.28711213,607.24,605.42,5.348]
[1745600574553,1.25797529,607.33,605.42,5.348]
[1745600575754,0.28710266,607.32,605.42,5.348]
[1745600576049,1.25797529,607.16,605.42,5.348]
[1745600577750,0.28712161,607.15,605.42,5.348]
[1745600578154,1.5450969,607.15,605.42,5.348]
[1745600578356,1.5450969,607.15,605.43,0.30307634]
[1745600578754,1.5450969,607.15,605.42,5.348]
[1745600580459,0.28712161,607.15,605.42,5.348]
[1745600583662,1.25797529,607.39,605.42,5.348]
[1745600583862,0.28709555,607.14,605.42,5.348]
[1745600584161,1.25797529,607.39,605.42,5.348]
[1745600584861,0.28709555,607.38,605.42,5.348]
[1745600585464,1.25797529,607.35,605.42,5.348]
[1745600586758,0.28710029,607.34,605.42,5.348]
[1745600588864,0.28710029,607.34,605.43,0.3030202]
[1745600589159,0.28710029,607.34,605.42,3.036]
[1745600589364,0.28710029,607.34,605.43,0.30301961]
[1745600589666,1.25797529,607.48,605.43,0.30301961]
[1745600589864,0.28705174,607.33,605.43,0.30301961]
[1745600590061,1.25797529,607.48,605.43,0.30301961]
[1745600590865,0.28704937,607.47,605.43,0.30301961]
[1745600592470,1.25797529,607.48,605.43,1.56401961]
[1745600592767,1.25797529,607.48,605.44,0.30301961]
[1745600592968,0.28704819,607.47,605.44,0.30301961]
[1745600593671,0.28704819,607.47,605.43,3.981]
[1745600593870,0.28704819,607.47,605.44,0.30298595]
[1745600594971,1.25797529,607.44,605.44,0.30298595]
[1745600596667,1.25797529,607.36,605.43,3.981]
[1745600596871,1.25797529,607.36,605.44,0.30298496]
[1745600597971,1.25797529,607.29,605.44,0.30298496]
[1745600599973,1.25797529,607.29,605.45,1.465]
[1745600600169,1.25797529,607.29,605.46,0.30298496]
[1745600600673,1.25797529,607.3,605.46,0.30298496]
[1745600601974,0.28706713,607.29,605.46,0.30298496]
[1745600602772,0.28706713,607.29,605.45,1.465]
[1745600602975,0.28706713,607.29,605.46,0.30300578]
[1745600604280,0.28706713,607.29,605.45,1.465]
[1745600604475,0.28706713,607.29,605.46,0.30300826]
[1745600604781,0.28705411,607.28,605.46,0.30300826]
[1745600607083,0.28705411,607.28,605.45,1.465]
[1745600609681,0.28705411,607.28,605.46,0.30305166]
[1745600609875,0.28705411,607.28,605.45,1.465]
[1745600610482,1.25797529,607.42,605.45,1.465]
[1745600610783,0.2870766,607.27,605.45,1.465]
[1745600611078,1.25797529,607.42,605.45,1.465]
[1745600611280,1.25797529,607.35,605.45,1.465]
[1745600611984,0.28708489,607.34,605.45,1.465]
[1745600612189,0.28708489,607.34,605.46,1.075]
[1745600613586,1.25797529,607.47,605.46,1.075]
[1745600613780,0.28708371,607.33,605.46,1.075]
[1745600613981,1.25797529,607.47,605.46,1.075]
[1745600614588,1.25797529,607.47,605.47,1.545]
[1745600615283,1.25797529,607.45,605.47,1.545]
[1745600615790,0.28707068,607.44,605.47,1.545]
[1745600616489,1.25797529,607.45,605.47,1.545]
[1745600616883,0.28706358,607.44,605.47,1.545]
[1745600618592,1.25797529,607.33,605.47,1.545]
[1745600619886,0.28707779,607.32,605.47,1.545]
[1745600625497,1.25797529,607.38,605.47,1.545]
[1745600625894,0.28707187,607.37,605.47,1.545]
[1745600628701,1.25797529,607.56,605.47,1.545]
[1745600628897,0.28705056,607.36,605.47,1.545]
[1745600629095,1.25797529,607.56,605.47,1.545]
[1745600629898,0.28705056,607.55,605.47,1.545]
[1745600630209,1.25797529,607.46,605.47,1.545]
[1745600632005,0.28705766,607.45,605.47,1.545]
[1745600633401,1.25797529,607.38,605.48,1.155]
[1745600635010,0.28706595,607.37,605.48,1.155]
[1745600636007,0.28706595,607.37,605.49,1.358]
[1745600637507,1.25797529,607.69,605.49,1.358]
[1745600637807,0.28702806,607.36,605.49,1.358]
[1745600638107,1.25797529,607.69,605.49,1.358]
[1745600638710,1.25797529,607.61,605.49,1.358]
[1745600640909,0.28703753,607.6,605.49,1.358]
[1745600642512,0.28703753,607.6,605.5,1.483]
[1745600643113,0.28703753,607.6,605.51,1.22]
[1745600643613,1.25797529,607.66,605.51,1.22]
[1745600643908,1.25797529,607.33,605.51,1.22]
[1745600645812,0.28705884,607.32,605.51,1.22]
[1745600646513,1.25797529,607.33,605.51,1.22]
[1745600646720,1.25797529,607.92,605.51,1.22]
[1745600648013,0.28697954,607.91,605.51,1.22]
[1745600649514,1.25797529,607.92,605.51,1.22]
[1745600649717,1.25797529,607.95,605.51,1.22]
[1745600649909,0.28697717,607.9,605.51,1.22]
[1745600650314,0.28697717,607.9,605.52,0.30298472]
[1745600650508,0.28697717,607.9,605.53,0.30298444]
[1745600650712,0.28697717,607.9,605.54,0.30298444]
[1745600651014,0.28697717,607.9,605.55,0.30298444]
[1745600651314,0.28697717,607.9,605.51,1.22]
[1745600651515,0.28697717,607.9,605.52,0.30298453]
[1745600651715,1.25797529,607.44,605.52,0.30298453]
[1745600652917,0.28703398,607.43,605.52,0.30298453]
[1745600654917,0.28703398,607.43,605.51,1.50703398]
[1745600655117,0.28703398,607.43,605.52,0.30298459]
[1745600655617,1.25797529,607.45,605.52,0.30298459]
[1745600655818,0.28703398,607.42,605.52,0.30298459]
[1745600658221,1.25797529,607.26,605.52,0.30298459]
[1745600660019,1.25797529,607.26,605.52,1.83698459]
[1745600660218,1.25797529,607.26,605.52,1.534]
[1745600661019,1.25797529,607.27,605.52,1.534]
[1745600661819,1.54502821,607.27,605.52,1.534]
[1745600662519,1.54502821,607.27,605.53,0.3029748]
[1745600664423,0.28705292,607.27,605.53,0.3029748]
[1745600664721,1.25797529,607.47,605.53,0.3029748]
[1745600664922,0.28702688,607.28,605.53,0.3029748]
[1745600665220,1.25797529,607.47,605.53,0.3029748]
[1745600665723,1.25797529,607.47,605.52,1.82102688]
[1745600666623,0.28702688,607.46,605.52,1.82102688]
[1745600667720,0.28702688,607.46,605.53,0.30297551]
[1745600667924,0.28702688,607.46,605.52,1.82102688]
[1745600669127,0.28702688,607.46,605.53,0.30296085]
[1745600670729,1.25797529,607.74,605.53,0.30296085]
[1745600670922,0.28699256,607.45,605.53,0.30296085]
[1745600671124,1.25797529,607.74,605.53,0.30296085]
[1745600671828,0.28699256,607.73,605.53,0.30296085]
[1745600673028,0.28699256,607.73,605.52,1.82099256]
[1745600673229,1.25797529,607.58,605.53,0.30295358]
[1745600673825,0.28701149,607.57,605.53,0.30295358]
[1745600674532,0.28701149,607.57,605.52,1.82101149]
[1745600674732,0.28701149,607.57,605.53,0.30295065]
[1745600675636,0.28701149,607.57,605.52,1.82101149]
[1745600676135,0.28701149,607.57,605.53,0.30295057]
[1745600676531,1.25797529,607.62,605.53,0.30295057]
[1745600677035,0.28700202,607.61,605.53,0.30295057]
[1745600677632,0.28700202,607.61,605.52,1.82100202]
[1745600677836,0.28700202,607.61,605.53,0.30294405]
[1745600679238,0.28700202,607.61,605.52,1.82100202]
[1745600679432,0.28700202,607.61,605.53,0.3029374]
[1745600679635,1.25797529,607.62,605.53,0.3029374]
[1745600679836,1.25797529,607.7,605.53,0.3029374]
[1745600680034,0.28699729,607.6,605.53,0.3029374]
[1745600680237,1.25797529,607.7,605.53,0.3029374]
[1745600680738,1.25797529,607.7,605.52,1.82099729]
[1745600680935,1.25797529,607.7,605.53,0.3029419]
[1745600681937,0.28698782,607.69,605.53,0.3029419]
[1745600682538,1.25797529,607.71,605.53,0.3029419]
[1745600682738,1.25797529,607.71,605.5,1.483]
[1745600682938,1.25797529,607.71,605.51,0.30294061]
[1745600683134,0.28698901,607.7,605.52,0.28698901]
[1745600683333,0.28698901,607.7,605.53,0.30294061]
[1745600685439,1.25797529,607.67,605.52,0.28698901]
[1745600685634,1.25797529,607.67,605.53,0.30294498]
[1745600685838,1.25797529,607.67,605.51,0.30294498]
[1745600686041,1.25797529,607.67,605.52,0.58988548]
[1745600686241,1.25797529,607.67,605.53,0.30294498]
[1745600686943,1.25797529,607.67,605.52,0.2869405]
[1745600687142,1.25797529,607.67,605.53,0.30293768]
[1745600687945,1.25797529,607.56,605.53,0.30293768]
[1745600688544,1.25797529,607.56,605.5,1.483]
[1745600688843,1.25797529,607.56,605.52,0.28700202]
[1745600688844,0.28700202,607.55,605.52,0.28700202]
[1745600689039,0.28700202,607.55,605.53,0.30293799]
[1745600690046,0.28700202,607.55,605.52,0.28700202]
[1745600690237,0.28700202,607.55,605.53,0.30293797]
[1745600691548,1.25797529,607.6,605.53,0.30293797]
[1745600691747,1.25797529,607.6,605.51,0.30293797]
[1745600691942,0.28699729,607.54,605.52,0.58993526]
[1745600692139,0.28699729,607.54,605.53,0.30293797]
[1745600694549,1.25797529,607.6,605.53,0.30293797]
[1745600694745,1.25797529,607.6,605.51,0.30293797]
[1745600694947,0.28699729,607.53,605.52,0.28699729]
[1745600695148,0.28699729,607.53,605.53,0.30293797]
[1745600699451,0.28699729,607.53,605.52,0.28699729]
[1745600699751,0.28699729,607.53,605.53,0.30293952]
[1745600700551,1.25797529,607.63,605.53,0.30293952]
[1745600700847,0.28698427,607.52,605.54,0.30293952]
[1745600701046,1.25797529,607.63,605.53,0.30293952]
[1745600701252,1.25797529,607.59,605.55,1.04405207]
[1745600702952,0.2870328,607.58,605.55,1.04405207]
[1745600703948,0.2870328,607.58,605.52,0.28698427]
[1745600706556,1.25797529,607.95,605.39,1.357]
[1745600706855,0.28703043,607.57,605.52,0.28703043]
[1745600707056,1.25797529,607.95,605.52,0.28703043]
[1745600707357,1.25797529,607.6,605.39,1.357]
[1745600708357,1.25797529,607.6,605.4,0.28707187]
[1745600708855,0.28707187,607.59,605.4,0.28707187]
[1745600709560,1.25797529,607.58,605.39,1.357]
[1745600709858,1.54504716,607.58,605.4,0.28707187]
[1745600711955,1.25797529,607.41,605.4,0.28707187]
[1745600712561,1.25797529,607.41,605.39,1.357]
[1745600712863,0.28709437,607.4,605.4,0.28709437]
[1745600714863,0.28709437,607.4,605.4,1.66809437]
[1745600715357,0.28709437,607.4,605.4,2.97609437]
[1745600715555,0.28709437,607.4,605.4,2.689]
[1745600715758,1.25797529,607.43,605.4,2.689]
[1745600716059,0.28709081,607.39,605.4,2.97609081]
[1745600718558,1.25797529,607.7,605.4,3.93]
[1745600718862,0.28708252,607.38,605.4,3.93]
[1745600719063,0.28708252,607.38,605.4,4.21708252]
[1745600719363,1.25797529,607.92,605.4,4.21708252]
[1745600721568,1.25797529,607.92,605.4,3.93]
[1745600721962,1.25797529,607.81,605.4,4.21705648]
[1745600724268,0.28705648,607.91,605.4,4.21705648]
[1745600724269,1.25797529,607.68,605.4,4.21705648]
[1745600726469,1.25797529,607.78,605.4,4.21705648]
[1745600727570,1.25797529,607.78,605.4,3.93]
[1745600727869,0.28705411,607.77,605.4,4.21705411]
[1745600729571,1.25797529,607.44,605.4,4.21705411]
[1745600730573,1.25797529,607.44,605.4,3.93]
[1745600730972,0.28708252,607.43,605.4,4.21708252]
[1745600732272,0.28708252,607.43,605.41,0.30303818]
[1745600732973,0.28708252,607.43,605.42,0.30299054]
[1745600733174,0.28708252,607.43,605.43,0.30299054]
[1745600733473,0.28708252,607.43,605.44,0.30299054]
[1745600733675,1.25797529,607.5,605.41,0.30299054]
[1745600733973,0.287047,607.42,605.41,0.59003754]
[1745600734173,1.25797529,607.5,605.42,0.30299054]
[1745600734473,1.25797529,607.5,605.41,0.287047]
[1745600734768,1.25797529,607.5,605.42,0.30297]
[1745600735874,0.28703161,607.49,605.42,0.30297]
[1745600736274,0.28703161,607.49,605.42,1.58197]
[1745600736474,0.28703161,607.49,605.43,0.30297]
[1745600736672,1.25797529,607.52,605.43,0.30297]
[1745600737277,1.25797529,607.52,605.43,1.43197]
[1745600737576,1.25797529,607.52,605.43,1.129]
[1745600737773,1.25797529,607.52,605.44,0.30293555]
[1745600738171,0.28700794,607.51,605.44,0.30293555]
[1745600739176,0.28700794,607.51,605.43,1.129]
[1745600739374,0.28700794,607.51,605.44,0.30296249]
[1745600739675,1.25797529,607.52,605.44,0.30296249]
[1745600739876,1.25797529,607.96,605.43,1.129]
[1745600740070,0.28702451,607.5,605.44,0.3029617]
[1745600740275,1.25797529,607.96,605.44,0.3029617]
[1745600740978,0.28697244,607.95,605.44,0.3029617]
[1745600741879,1.25797529,607.89,605.44,0.3029617]
[1745600742380,1.25797529,607.89,605.45,0.30293819]
[1745600742577,1.25797529,607.89,605.46,0.30293819]
[1745600742775,1.25797529,607.89,605.44,0.30293819]
[1745600742975,0.28697362,607.88,605.44,0.28697362]
[1745600743177,0.28697362,607.88,605.45,0.30294026]
[1745600744482,1.25797529,607.72,605.45,0.30294026]
[1745600745180,1.25797529,607.72,605.46,1.256]
[1745600745483,1.25797529,607.72,605.47,0.30294026]
[1745600747385,1.25797529,607.65,605.47,0.30294026]
[1745600748987,0.28698664,607.64,605.47,0.30294026]
[1745600751691,0.28698664,607.64,605.46,1.256]
[1745600751886,0.28698664,607.64,605.47,0.3029363]
[1745600753189,0.28698664,607.64,605.46,1.256]
[1745600753389,0.28698664,607.64,605.47,0.30293663]
[1745600754690,1.25797529,608.17,605.47,0.30293663]
[1745600754890,0.28692512,607.63,605.48,1.021]
[1745600755083,0.28692512,607.63,605.49,0.30293663]
[1745600755286,1.25797529,608.17,605.49,0.30293663]
[1745600755991,0.28692275,608.16,605.49,0.30293663]
[1745600756392,0.28692275,608.16,605.48,1.021]
[1745600756393,1.25797529,607.9,605.48,1.021]
[1745600756586,1.25797529,607.9,605.49,0.30293878]
[1745600758091,1.25797529,607.9,605.48,1.021]
[1745600758390,1.25797529,607.9,605.49,0.30293872]
[1745600759593,1.25797529,607.85,605.49,0.30293872]
[1745600762694,1.25797529,607.62,605.49,0.30293872]
[1745600765395,1.25797529,607.62,605.48,1.021]
[1745600765588,1.25797529,607.62,605.5,0.30294813]
[1745600765791,1.25797529,607.62,605.51,0.30294813]
[1745600765995,2.12377208,607.49,605.49,0.30294813]
[1745600766196,1.25797529,607.36,605.5,0.30294813]
[1745600766395,1.25797529,607.36,605.49,0.30294813]
[1745600766693,1.25797529,607.36,605.5,0.30294813]
[1745600766895,1.25797529,607.36,605.49,0.30294813]
[1745600767096,1.25797529,607.36,605.5,0.30294813]
[1745600767394,1.25797529,607.36,605.51,0.30294813]
[1745600767594,1.25797529,607.36,605.48,1.021]
[1745600767595,1.25797529,607.36,605.49,0.30294813]
[1745600767896,1.25797529,607.36,605.5,3.067]
[1745600768195,1.25797529,607.56,605.51,0.30294813]
[1745600768494,1.25797529,607.56,605.5,3.067]
[1745600768795,1.25797529,607.56,605.51,0.30294869]
[1745600769896,0.28701149,607.55,605.51,0.30294869]
[1745600770097,0.28701149,607.55,605.5,3.067]
[1745600770396,0.28701149,607.55,605.51,0.30294654]
[1745600770596,1.25797529,607.48,605.53,1.04405207]
[1745600770795,1.25797529,607.48,605.54,0.30294654]
[1745600770996,1.25797529,607.48,605.53,1.04405207]
[1745600773593,0.28701149,607.55,605.5,3.067]
[1745600775497,0.28701149,607.55,605.51,0.30299814]
[1745600775995,1.25797529,607.48,605.51,0.30299814]
[1745600778400,1.25797529,607.47,605.51,0.30299814]
[1745600778899,1.25797529,607.47,605.52,1.15]
[1745600779199,1.25797529,607.47,605.53,0.30299814]
[1745600779594,1.25797529,607.47,605.52,2.701]
[1745600779797,1.25797529,607.47,605.53,0.30297642]
[1745600780202,0.28702451,607.46,605.53,0.30297642]
[1745600781712,1.25797529,607.48,605.53,0.30297642]
[1745600781906,0.2870328,607.45,605.53,0.30297642]
[1745600782106,0.2870328,607.45,605.52,2.701]
[1745600782708,0.2870328,607.45,605.52,4.127]
[1745600783607,0.2870328,607.45,605.52,5.147]
[1745600787612,1.25797529,607.76,605.52,5.147]
[1745600788214,0.28701149,607.75,605.52,5.147]
[1745600788614,1.25797529,607.73,605.52,5.147]
[1745600790910,0.28701504,607.72,605.52,5.147]
[1745600793716,1.25797529,607.73,605.52,5.147]
[1745600793913,0.28701978,607.71,605.52,5.147]
[1745600795715,1.25797529,607.6,605.52,5.147]
[1745600796811,0.28703517,607.59,605.52,5.147]
[1745600799620,1.25797529,607.63,605.52,5.147]
[1745600799916,1.25797529,607.51,605.52,5.147]
[1745600802522,1.25797529,607.55,605.52,5.147]